[Event "*** SCC Grand Prix: Titled Tuesday Blitz"]
[Site "Chess.com"]
[Date "2020.09.29"]
[Round "1"]
[White "TimofeevAr"]
[Black "StockholmMissile"]
[Result "1-0"]
[WhiteElo "2868"]
[BlackElo "2424"]
[TimeControl "180+1"]
[EndTime "10:08:20 PDT"]
[Termination "TimofeevAr won by resignation"]

1. e4 {[%clk 0:03:00.7]} 1... e5 {[%clk 0:02:52.9]} 2. Nf3 {[%clk 0:03:00.1]}
2... Nc6 {[%clk 0:02:52.4]} 3. Bb5 {[%clk 0:02:59.7]} 3... a6 {[%clk 0:02:51.6]}
4. Ba4 {[%clk 0:02:59.3]} 4... Nf6 {[%clk 0:02:51.4]} 5. d3 {[%clk 0:02:58.9]}
5... b5 {[%clk 0:02:49.6]} 6. Bb3 {[%clk 0:02:59.1]} 6... Bc5 {[%clk 0:02:50.2]}
7. O-O {[%clk 0:02:55.1]} 7... d6 {[%clk 0:02:49.9]} 8. c3 {[%clk 0:02:54.5]}
8... O-O {[%clk 0:02:46.7]} 9. Nbd2 {[%clk 0:02:45.6]} 9... Bb6 {[%clk
0:02:44.4]} 10. h3 {[%clk 0:02:42.4]} 10... Ne7 {[%clk 0:02:42.9]} 11. Re1
{[%clk 0:02:41.1]} 11... Ng6 {[%clk 0:02:42.5]} 12. Nf1 {[%clk 0:02:41]} 12...
h6 {[%clk 0:02:33.9]} 13. Ng3 {[%clk 0:02:40.2]} 13... c6 {[%clk 0:02:31.8]} 14.
d4 {[%clk 0:02:38.3]} 14... Re8 {[%clk 0:02:27.1]} 15. Be3 {[%clk 0:02:30.1]}
15... Rb8 {[%clk 0:02:23.5]} 16. Qd2 {[%clk 0:02:25.8]} 16... exd4 {[%clk
0:02:06.8]} 17. Bxd4 {[%clk 0:02:24.7]} 17... c5 {[%clk 0:02:01.1]} 18. Bxf6
{[%clk 0:02:19.7]} 18... Qxf6 {[%clk 0:02:02]} 19. Nh5 {[%clk 0:02:16.1]} 19...
Qe7 {[%clk 0:01:54.2]} 20. Bd5 {[%clk 0:02:15.3]} 20... Ne5 {[%clk 0:01:47]} 21.
Qf4 {[%clk 0:02:06]} 21... Nxf3+ {[%clk 0:01:42.9]} 22. Qxf3 {[%clk 0:02:04.5]}
22... Be6 {[%clk 0:01:42.8]} 23. Qg3 {[%clk 0:02:00]} 23... Qg5 {[%clk
0:01:39.2]} 24. Qxg5 {[%clk 0:01:53.9]} 24... hxg5 {[%clk 0:01:40.1]} 25. Rad1
{[%clk 0:01:53.1]} 25... c4 {[%clk 0:01:22.6]} 26. Kf1 {[%clk 0:01:52.1]} 26...
Bc5 {[%clk 0:01:22.2]} 27. a3 {[%clk 0:01:50.8]} 27... a5 {[%clk 0:01:22.2]} 28.
f4 {[%clk 0:01:44]} 28... g4 {[%clk 0:00:54.9]} 29. Bxe6 {[%clk 0:01:25.8]}
29... Rxe6 {[%clk 0:00:53.5]} 30. hxg4 {[%clk 0:01:26]} 30... b4 {[%clk
0:00:53.9]} 31. axb4 {[%clk 0:01:25.1]} 31... axb4 {[%clk 0:00:54.8]} 32. Ng3
{[%clk 0:01:09.8]} 32... bxc3 {[%clk 0:00:52.5]} 33. bxc3 {[%clk 0:01:10.1]}
33... Rb3 {[%clk 0:00:53.1]} 34. Rc1 {[%clk 0:01:06.1]} 34... Rh6 {[%clk
0:00:41.5]} 35. e5 {[%clk 0:00:53]} 35... d5 {[%clk 0:00:39.4]} 36. Rc2 {[%clk
0:00:45.4]} 36... d4 {[%clk 0:00:19.6]} 37. cxd4 {[%clk 0:00:43.5]} 37... Bb4
{[%clk 0:00:20]} 38. Nh5 {[%clk 0:00:33.8]} 38... g6 {[%clk 0:00:15.1]} 39. Nf6+
{[%clk 0:00:32.3]} 39... Kg7 {[%clk 0:00:15.6]} 40. Rec1 {[%clk 0:00:26.1]}
40... Ba3 {[%clk 0:00:11.7]} 41. Kf2 {[%clk 0:00:24.1]} 41... Bxc1 {[%clk
0:00:11]} 42. Rxc1 {[%clk 0:00:24.3]} 42... c3 {[%clk 0:00:11.2]} 43. Ne4 {[%clk
0:00:22.8]} 43... Rh8 {[%clk 0:00:08.7]} 44. Rxc3 {[%clk 0:00:20.3]} 44... Rxc3
{[%clk 0:00:08.6]} 45. Nxc3 {[%clk 0:00:20.5]} 45... Rc8 {[%clk 0:00:09.5]} 46.
Ne4 {[%clk 0:00:20]} 46... Rc2+ {[%clk 0:00:09.6]} 47. Kf3 {[%clk 0:00:20.1]}
47... Rc4 {[%clk 0:00:07.8]} 48. d5 {[%clk 0:00:19.3]} 48... Rd4 {[%clk
0:00:05.6]} 49. d6 {[%clk 0:00:19.6]} 49... Kf8 {[%clk 0:00:06]} 50. Ke3 {[%clk
0:00:18.4]} 50... Rd1 {[%clk 0:00:06.4]} 51. Nf6 {[%clk 0:00:17.7]} 51... Kg7
{[%clk 0:00:03.5]} 52. Ke4 {[%clk 0:00:16.7]} 52... Kf8 {[%clk 0:00:03.5]} 53.
f5 {[%clk 0:00:16.3]} 53... g5 {[%clk 0:00:02.9]} 54. Nd5 {[%clk 0:00:14.4]}
54... Ke8 {[%clk 0:00:02.9]} 55. e6 {[%clk 0:00:14.4]} 55... fxe6 {[%clk
0:00:02.8]} 56. fxe6 {[%clk 0:00:14.7]} 56... Rf1 {[%clk 0:00:02.6]} 57. Ke5
{[%clk 0:00:14.2]} 57... Re1+ {[%clk 0:00:01.4]} 58. Kf6 {[%clk 0:00:14]} 58...
Kd8 {[%clk 0:00:02]} 59. Kf7 {[%clk 0:00:11.7]} 59... Rf1+ {[%clk 0:00:01.6]}
60. Nf6 {[%clk 0:00:11.8]} 1-0

[Event "*** SCC Grand Prix: Titled Tuesday Blitz"]
[Site "Chess.com"]
[Date "2020.09.29"]
[Round "1"]
[White "Stouuf"]
[Black "ElusiveCat"]
[Result "1-0"]
[WhiteElo "2606"]
[BlackElo "2295"]
[TimeControl "180+1"]
[EndTime "10:08:20 PDT"]
[Termination "Stouuf won by resignation"]

1. e4 {[%clk 0:02:58.5]} 1... c5 {[%clk 0:02:59.3]} 2. Nf3 {[%clk 0:02:58.3]}
2... d6 {[%clk 0:02:59.3]} 3. Bb5+ {[%clk 0:02:58]} 3... Nd7 {[%clk 0:02:58.6]}
4. O-O {[%clk 0:02:56.9]} 4... a6 {[%clk 0:02:54.7]} 5. Bd3 {[%clk 0:02:55.2]}
5... Ngf6 {[%clk 0:02:51.9]} 6. c3 {[%clk 0:02:48.4]} 6... b5 {[%clk 0:02:51.7]}
7. Bc2 {[%clk 0:02:48.3]} 7... Bb7 {[%clk 0:02:51.8]} 8. Re1 {[%clk 0:02:48.5]}
8... Rc8 {[%clk 0:02:50.1]} 9. d3 {[%clk 0:02:34.6]} 9... e5 {[%clk 0:02:31.1]}
10. Nbd2 {[%clk 0:02:33]} 10... g6 {[%clk 0:02:26.8]} 11. Nf1 {[%clk 0:02:32.3]}
11... Bg7 {[%clk 0:02:26.7]} 12. Ng3 {[%clk 0:02:32.3]} 12... O-O {[%clk
0:02:26.8]} 13. d4 {[%clk 0:02:28.8]} 13... cxd4 {[%clk 0:02:14.7]} 14. cxd4
{[%clk 0:02:29.7]} 14... exd4 {[%clk 0:02:14.6]} 15. Nxd4 {[%clk 0:02:29.7]}
15... Ne5 {[%clk 0:02:14.5]} 16. Bg5 {[%clk 0:02:21.1]} 16... Qb6 {[%clk
0:02:12.3]} 17. h3 {[%clk 0:02:17.1]} 17... h6 {[%clk 0:02:08]} 18. Be3 {[%clk
0:02:17]} 18... Nc4 {[%clk 0:02:07]} 19. Bc1 {[%clk 0:02:13.2]} 19... Nd7 {[%clk
0:01:59.7]} 20. Nge2 {[%clk 0:01:56.7]} 20... Rfe8 {[%clk 0:01:54.6]} 21. b3
{[%clk 0:01:56.2]} 21... Nce5 {[%clk 0:01:50.6]} 22. Be3 {[%clk 0:01:56]} 22...
Qa5 {[%clk 0:01:46.3]} 23. a4 {[%clk 0:01:43.1]} 23... b4 {[%clk 0:01:39.5]} 24.
Rc1 {[%clk 0:01:39.7]} 24... Nc5 {[%clk 0:01:37.2]} 25. f4 {[%clk 0:01:33.3]}
25... Ned7 {[%clk 0:01:35.2]} 26. Ng3 {[%clk 0:01:30]} 26... Qd8 {[%clk
0:01:32.2]} 27. Bf2 {[%clk 0:01:26.9]} 27... Nf6 {[%clk 0:01:20.6]} 28. Qd2
{[%clk 0:01:13.9]} 28... Nfxe4 {[%clk 0:01:07.2]} 29. Nxe4 {[%clk 0:01:12.6]}
29... Bxe4 {[%clk 0:00:59]} 30. Qxb4 {[%clk 0:01:09.5]} 30... Bxc2 {[%clk
0:00:58.3]} 31. Rxe8+ {[%clk 0:01:05.2]} 31... Qxe8 {[%clk 0:00:57.8]} 32. Rxc2
{[%clk 0:01:05.4]} 32... Nd3 {[%clk 0:00:57.2]} 33. Rxc8 {[%clk 0:00:40.7]}
33... Qxc8 {[%clk 0:00:58.1]} 34. Qd2 {[%clk 0:00:37.4]} 34... Nxf2 {[%clk
0:00:51.8]} 35. Kxf2 {[%clk 0:00:38.3]} 35... Qc5 {[%clk 0:00:49.2]} 36. Ke3
{[%clk 0:00:38.7]} 36... g5 {[%clk 0:00:39.4]} 37. g3 {[%clk 0:00:29.7]} 37...
Bf6 {[%clk 0:00:37.5]} 38. Qd3 {[%clk 0:00:28.9]} 38... Kg7 {[%clk 0:00:34.8]}
39. Qc4 {[%clk 0:00:24.4]} 39... Qb6 {[%clk 0:00:23.5]} 40. Kd3 {[%clk
0:00:24.1]} 40... Kg8 {[%clk 0:00:21.4]} 41. b4 {[%clk 0:00:19.3]} 41... Qb7
{[%clk 0:00:18.4]} 42. b5 {[%clk 0:00:14.2]} 42... axb5 {[%clk 0:00:17.7]} 43.
Qxb5 {[%clk 0:00:14.8]} 43... Qg2 {[%clk 0:00:17.4]} 44. Qe8+ {[%clk 0:00:11.9]}
44... Kg7 {[%clk 0:00:16]} 45. Qe3 {[%clk 0:00:07.1]} 45... gxf4 {[%clk
0:00:15.2]} 46. gxf4 {[%clk 0:00:05.7]} 46... Bxd4 {[%clk 0:00:15.1]} 47. Qxd4+
{[%clk 0:00:05.4]} 47... f6 {[%clk 0:00:15.5]} 48. Qxd6 {[%clk 0:00:04.4]} 48...
Qf3+ {[%clk 0:00:15.5]} 49. Kc4 {[%clk 0:00:04.4]} 49... Qxh3 {[%clk 0:00:15.3]}
50. a5 {[%clk 0:00:03.8]} 50... Qc8+ {[%clk 0:00:15]} 51. Kb5 {[%clk 0:00:03.6]}
51... Qb7+ {[%clk 0:00:14.5]} 52. Kc4 {[%clk 0:00:02.2]} 52... Qc8+ {[%clk
0:00:14]} 53. Kb5 {[%clk 0:00:02.5]} 53... Qb7+ {[%clk 0:00:14.3]} 54. Kc5
{[%clk 0:00:03.1]} 54... Qc8+ {[%clk 0:00:14.3]} 55. Qc6 {[%clk 0:00:03.8]}
55... Qf5+ {[%clk 0:00:14.3]} 56. Kb6 {[%clk 0:00:04.3]} 56... Qxf4 {[%clk
0:00:14.4]} 57. Qc7+ {[%clk 0:00:04.4]} 57... Qxc7+ {[%clk 0:00:13.4]} 58. Kxc7
{[%clk 0:00:05.3]} 58... f5 {[%clk 0:00:13.8]} 59. a6 {[%clk 0:00:06]} 59... f4
{[%clk 0:00:14.4]} 60. a7 {[%clk 0:00:06.9]} 60... f3 {[%clk 0:00:15.1]} 61.
a8=Q {[%clk 0:00:07.8]} 61... f2 {[%clk 0:00:15.7]} 62. Qg2+ {[%clk 0:00:08.5]}
62... Kf6 {[%clk 0:00:15.3]} 63. Qxf2+ {[%clk 0:00:09.4]} 63... Kg5 {[%clk
0:00:16.2]} 64. Qg2+ {[%clk 0:00:09.8]} 64... Kf4 {[%clk 0:00:16.3]} 65. Kd6
{[%clk 0:00:10.7]} 65... h5 {[%clk 0:00:15.7]} 66. Ke6 {[%clk 0:00:11.2]} 66...
h4 {[%clk 0:00:16.3]} 67. Kf6 {[%clk 0:00:11.8]} 1-0

[Event "*** SCC Grand Prix: Titled Tuesday Blitz"]
[Site "Chess.com"]
[Date "2020.09.29"]
[Round "1"]
[White "queen_iryna"]
[Black "TheMagnet"]
[Result "0-1"]
[WhiteElo "2293"]
[BlackElo "2597"]
[TimeControl "180+1"]
[EndTime "10:08:26 PDT"]
[Termination "TheMagnet won by resignation"]

1. e4 {[%clk 0:03:00.9]} 1... c5 {[%clk 0:02:51.3]} 2. Nf3 {[%clk 0:03:00]} 2...
g6 {[%clk 0:02:51.7]} 3. d4 {[%clk 0:02:54]} 3... cxd4 {[%clk 0:02:52.6]} 4.
Qxd4 {[%clk 0:02:54]} 4... Nf6 {[%clk 0:02:52]} 5. e5 {[%clk 0:02:37]} 5... Nc6
{[%clk 0:02:51.9]} 6. Qa4 {[%clk 0:02:29.9]} 6... Nd5 {[%clk 0:02:51.5]} 7. Bd3
{[%clk 0:02:16.9]} 7... Bg7 {[%clk 0:02:42.7]} 8. Qe4 {[%clk 0:02:16]} 8... Nb6
{[%clk 0:02:39.5]} 9. O-O {[%clk 0:02:15]} 9... d5 {[%clk 0:02:22.9]} 10. exd6
{[%clk 0:02:14.5]} 10... Qxd6 {[%clk 0:02:23.2]} 11. Nc3 {[%clk 0:02:02.4]}
11... Bf5 {[%clk 0:02:17.1]} 12. Qe2 {[%clk 0:01:59.4]} 12... Bxd3 {[%clk
0:02:16.1]} 13. cxd3 {[%clk 0:02:00.3]} 13... O-O {[%clk 0:02:10.5]} 14. Ne4
{[%clk 0:01:50.3]} 14... Qd5 {[%clk 0:02:00.3]} 15. Bf4 {[%clk 0:01:40.5]} 15...
Qb5 {[%clk 0:01:47]} 16. Rab1 {[%clk 0:01:24.5]} 16... Nd5 {[%clk 0:01:45.7]}
17. Bg3 {[%clk 0:01:21.2]} 17... Rfd8 {[%clk 0:01:41.8]} 18. Rfd1 {[%clk
0:01:18.2]} 18... Ndb4 {[%clk 0:01:36.4]} 19. Nc3 {[%clk 0:01:10.3]} 19... Qa6
{[%clk 0:01:28.1]} 20. d4 {[%clk 0:00:52]} 20... Qxe2 {[%clk 0:01:11.9]} 21.
Nxe2 {[%clk 0:00:52.9]} 21... Nxa2 {[%clk 0:01:11.8]} 22. d5 {[%clk 0:00:47.7]}
22... Ncb4 {[%clk 0:01:07.6]} 23. d6 {[%clk 0:00:44.5]} 23... exd6 {[%clk
0:01:03.9]} 24. Bxd6 {[%clk 0:00:45.4]} 24... Bf8 {[%clk 0:00:59.7]} 25. Bxf8
{[%clk 0:00:43.8]} 25... Kxf8 {[%clk 0:01:00.6]} 26. g3 {[%clk 0:00:39.5]} 26...
Nd3 {[%clk 0:00:56.5]} 27. Ned4 {[%clk 0:00:34.5]} 27... Nab4 {[%clk 0:00:55.8]}
28. Kf1 {[%clk 0:00:30.1]} 28... Rac8 {[%clk 0:00:55.1]} 29. Ke2 {[%clk
0:00:25.9]} 29... Re8+ {[%clk 0:00:49.4]} 30. Kf1 {[%clk 0:00:24.2]} 30... a6
{[%clk 0:00:44.3]} 31. Rd2 {[%clk 0:00:22.5]} 31... Ne5 {[%clk 0:00:37]} 32.
Nxe5 {[%clk 0:00:21.5]} 32... Rxe5 {[%clk 0:00:37.9]} 33. Rbd1 {[%clk 0:00:21]}
33... Rec5 {[%clk 0:00:34.1]} 34. Nb3 {[%clk 0:00:18.7]} 34... R5c7 {[%clk
0:00:33.3]} 35. Ke2 {[%clk 0:00:17.5]} 35... Kg7 {[%clk 0:00:33]} 36. Rd7 {[%clk
0:00:17.1]} 36... Re8+ {[%clk 0:00:27]} 37. Kf3 {[%clk 0:00:16.4]} 37... Re7
{[%clk 0:00:26.7]} 38. Rxe7 {[%clk 0:00:11.5]} 38... Rxe7 {[%clk 0:00:27.6]} 39.
Rd8 {[%clk 0:00:11.4]} 39... Nc6 {[%clk 0:00:26.3]} 40. Rc8 {[%clk 0:00:10.5]}
40... Ne5+ {[%clk 0:00:25.8]} 41. Kg2 {[%clk 0:00:10.3]} 41... Nd3 {[%clk
0:00:23.8]} 42. Nc5 {[%clk 0:00:10.4]} 42... Nxc5 {[%clk 0:00:22.6]} 43. Rxc5
{[%clk 0:00:11.3]} 43... Re2 {[%clk 0:00:22.9]} 44. b4 {[%clk 0:00:11.1]} 44...
Rb2 {[%clk 0:00:22.9]} 45. Rc4 {[%clk 0:00:11.4]} 45... Rb3 {[%clk 0:00:18]} 46.
h4 {[%clk 0:00:11.5]} 46... h5 {[%clk 0:00:18.4]} 47. Rf4 {[%clk 0:00:11.4]}
47... b6 {[%clk 0:00:15.9]} 48. Re4 {[%clk 0:00:10.1]} 48... a5 {[%clk
0:00:15.5]} 49. bxa5 {[%clk 0:00:09.7]} 49... bxa5 {[%clk 0:00:16.4]} 50. Ra4
{[%clk 0:00:09.2]} 50... Rb5 {[%clk 0:00:17]} 51. Kh2 {[%clk 0:00:08.2]} 51...
Rf5 {[%clk 0:00:16.1]} 52. Kg2 {[%clk 0:00:06.9]} 52... Kf6 {[%clk 0:00:16.7]}
53. Rc4 {[%clk 0:00:06.8]} 53... Ke6 {[%clk 0:00:15.5]} 54. Rc6+ {[%clk
0:00:06.8]} 54... Kd5 {[%clk 0:00:15.3]} 55. Ra6 {[%clk 0:00:06.7]} 55... Kc4
{[%clk 0:00:15.6]} 56. f3 {[%clk 0:00:06.6]} 56... Kb4 {[%clk 0:00:14.7]} 57. g4
{[%clk 0:00:06.4]} 57... hxg4 {[%clk 0:00:14.8]} 58. fxg4 {[%clk 0:00:07.3]}
58... Rd5 {[%clk 0:00:14.4]} 59. Kg3 {[%clk 0:00:07.3]} 59... a4 {[%clk
0:00:14]} 60. Kf4 {[%clk 0:00:06.6]} 60... a3 {[%clk 0:00:13.9]} 61. Rb6+ {[%clk
0:00:05.8]} 61... Rb5 {[%clk 0:00:13.9]} 62. Ra6 {[%clk 0:00:05.5]} 62... Ra5
{[%clk 0:00:13.7]} 63. Rb6+ {[%clk 0:00:05.4]} 63... Kc3 {[%clk 0:00:14]} 64.
Rb1 {[%clk 0:00:04.7]} 64... a2 {[%clk 0:00:14.2]} 65. Ra1 {[%clk 0:00:04.3]}
65... Kb2 {[%clk 0:00:14.7]} 66. Rf1 {[%clk 0:00:04.1]} 66... a1=Q {[%clk
0:00:13.8]} 67. Rxa1 {[%clk 0:00:04.7]} 67... Kxa1 {[%clk 0:00:14.7]} 68. g5
{[%clk 0:00:02.8]} 68... Rf5+ {[%clk 0:00:14]} 0-1

[Event "*** SCC Grand Prix: Titled Tuesday Blitz"]
[Site "Chess.com"]
[Date "2020.09.29"]
[Round "1"]
[White "Resignify"]
[Black "AleksanderHnydiuk"]
[Result "0-1"]
[WhiteElo "2230"]
[BlackElo "2547"]
[TimeControl "180+1"]
[EndTime "10:08:28 PDT"]
[Termination "AleksanderHnydiuk won by checkmate"]

1. e4 {[%clk 0:02:59.6]} 1... c5 {[%clk 0:02:59.1]} 2. Nc3 {[%clk 0:02:59.8]}
2... Nc6 {[%clk 0:02:58.4]} 3. g3 {[%clk 0:02:59.9]} 3... g6 {[%clk 0:02:58]} 4.
Bg2 {[%clk 0:02:59.9]} 4... Bg7 {[%clk 0:02:58.6]} 5. d3 {[%clk 0:03:00]} 5...
Rb8 {[%clk 0:02:58.5]} 6. Be3 {[%clk 0:02:58.4]} 6... d6 {[%clk 0:02:57.5]} 7.
a3 {[%clk 0:02:55.6]} 7... b5 {[%clk 0:02:51.2]} 8. Qd2 {[%clk 0:02:50.6]} 8...
a5 {[%clk 0:02:46.4]} 9. Nge2 {[%clk 0:02:41.4]} 9... b4 {[%clk 0:02:42.4]} 10.
axb4 {[%clk 0:02:42.1]} 10... axb4 {[%clk 0:02:43.2]} 11. Nd1 {[%clk 0:02:42.7]}
11... h5 {[%clk 0:02:40.5]} 12. h4 {[%clk 0:02:40.5]} 12... Nf6 {[%clk
0:02:36.1]} 13. f3 {[%clk 0:02:28.1]} 13... O-O {[%clk 0:02:18.5]} 14. O-O
{[%clk 0:02:26.8]} 14... Kh7 {[%clk 0:02:12.3]} 15. Nf4 {[%clk 0:02:23.9]} 15...
Nd4 {[%clk 0:02:02.1]} 16. Ne2 {[%clk 0:02:16.5]} 16... Nxe2+ {[%clk 0:01:51.5]}
17. Qxe2 {[%clk 0:02:16.1]} 17... Ne8 {[%clk 0:01:51.9]} 18. Kh2 {[%clk
0:02:08.9]} 18... Nc7 {[%clk 0:01:49.4]} 19. Qd2 {[%clk 0:02:01.4]} 19... Nb5
{[%clk 0:01:43]} 20. c3 {[%clk 0:01:47.5]} 20... bxc3 {[%clk 0:01:33.9]} 21.
bxc3 {[%clk 0:01:48.4]} 21... Bd7 {[%clk 0:01:32.6]} 22. Rf2 {[%clk 0:01:30.8]}
22... Ra8 {[%clk 0:01:31.6]} 23. Rxa8 {[%clk 0:01:26.9]} 23... Qxa8 {[%clk
0:01:32.5]} 24. c4 {[%clk 0:01:23.6]} 24... Nd4 {[%clk 0:01:30.8]} 25. Nc3
{[%clk 0:01:23.2]} 25... Qa1 {[%clk 0:01:26.5]} 26. Nd5 {[%clk 0:01:09.1]} 26...
e6 {[%clk 0:01:21.6]} 27. Nf4 {[%clk 0:01:03.9]} 27... Rb8 {[%clk 0:01:20.1]}
28. Rf1 {[%clk 0:00:39.2]} 28... Qxf1 {[%clk 0:01:13.2]} 29. Bxd4 {[%clk
0:00:20.2]} 29... Qb1 {[%clk 0:01:12]} 30. Bxg7 {[%clk 0:00:16.4]} 30... Kxg7
{[%clk 0:01:12.9]} 31. Qc3+ {[%clk 0:00:15.2]} 31... e5 {[%clk 0:01:12.9]} 32.
Nd5 {[%clk 0:00:09]} 32... Rb2 {[%clk 0:01:09.8]} 33. f4 {[%clk 0:00:06]} 33...
Rc2 {[%clk 0:01:02.8]} 34. Qa5 {[%clk 0:00:04.2]} 34... Qa2 {[%clk 0:00:54.1]}
35. Qxa2 {[%clk 0:00:03.1]} 35... Rxa2 {[%clk 0:00:55]} 36. fxe5 {[%clk
0:00:03.7]} 36... dxe5 {[%clk 0:00:55.5]} 37. Kg1 {[%clk 0:00:02.7]} 37... Rd2
{[%clk 0:00:52.5]} 38. Bf1 {[%clk 0:00:03.2]} 38... Bg4 {[%clk 0:00:51.2]} 39.
Ne3 {[%clk 0:00:03.1]} 39... Be2 {[%clk 0:00:44.5]} 40. Bxe2 {[%clk 0:00:02.8]}
40... Rxe2 {[%clk 0:00:44.6]} 41. Nf1 {[%clk 0:00:03]} 41... Kf6 {[%clk
0:00:42.1]} 42. Kh1 {[%clk 0:00:03.3]} 42... Re1 {[%clk 0:00:41.4]} 43. Kg2
{[%clk 0:00:03.2]} 43... Rd1 {[%clk 0:00:40.6]} 44. Ne3 {[%clk 0:00:01.5]} 44...
Rxd3 {[%clk 0:00:38.3]} 45. Kf3 {[%clk 0:00:02.4]} 45... Ke6 {[%clk 0:00:36.4]}
46. Ke2 {[%clk 0:00:01.9]} 46... Ra3 {[%clk 0:00:35.3]} 47. Kf3 {[%clk
0:00:01.8]} 47... f5 {[%clk 0:00:34.3]} 48. exf5+ {[%clk 0:00:02.7]} 48... gxf5
{[%clk 0:00:34.5]} 49. Ke2 {[%clk 0:00:03.1]} 49... f4 {[%clk 0:00:31.6]} 50.
gxf4 {[%clk 0:00:04]} 50... exf4 {[%clk 0:00:32.1]} 51. Nd5 {[%clk 0:00:04.7]}
51... Ke5 {[%clk 0:00:30]} 52. Kf2 {[%clk 0:00:04.5]} 52... Rh3 {[%clk 0:00:29]}
53. Kg2 {[%clk 0:00:03.9]} 53... Rxh4 {[%clk 0:00:29]} 54. Ne7 {[%clk
0:00:03.7]} 54... Rg4+ {[%clk 0:00:28.2]} 55. Kf2 {[%clk 0:00:03.5]} 55... Kd4
{[%clk 0:00:22.1]} 56. Kf3 {[%clk 0:00:02.9]} 56... Kxc4 {[%clk 0:00:21.5]} 57.
Nf5 {[%clk 0:00:03.1]} 57... Kd3 {[%clk 0:00:19.1]} 58. Nd6 {[%clk 0:00:03.1]}
58... c4 {[%clk 0:00:17.8]} 59. Nf5 {[%clk 0:00:03.1]} 59... c3 {[%clk
0:00:16.8]} 60. Nh6 {[%clk 0:00:03.1]} 60... c2 {[%clk 0:00:15.4]} 61. Nf5
{[%clk 0:00:02.6]} 61... c1=Q {[%clk 0:00:13.1]} 62. Kf2 {[%clk 0:00:03.1]}
62... Qg1+ {[%clk 0:00:09.7]} 63. Kf3 {[%clk 0:00:02.8]} 63... Qg2# {[%clk
0:00:09.7]} 0-1

[Event "*** SCC Grand Prix: Titled Tuesday Blitz"]
[Site "Chess.com"]
[Date "2020.09.29"]
[Round "1"]
[White "night_player"]
[Black "stolencandy13"]
[Result "0-1"]
[WhiteElo "1959"]
[BlackElo "2467"]
[TimeControl "180+1"]
[EndTime "10:08:31 PDT"]
[Termination "stolencandy13 won by resignation"]

1. e4 {[%clk 0:03:00.8]} 1... c6 {[%clk 0:02:59]} 2. d4 {[%clk 0:03:00.9]} 2...
d5 {[%clk 0:02:59.9]} 3. e5 {[%clk 0:03:01.4]} 3... Bf5 {[%clk 0:02:58.7]} 4. h4
{[%clk 0:02:59.3]} 4... h5 {[%clk 0:02:58]} 5. Bd3 {[%clk 0:02:58.8]} 5... Bxd3
{[%clk 0:02:56.3]} 6. Qxd3 {[%clk 0:02:59.7]} 6... e6 {[%clk 0:02:57.1]} 7. Nf3
{[%clk 0:02:59.3]} 7... Qb6 {[%clk 0:02:53.9]} 8. O-O {[%clk 0:02:57.6]} 8...
Ne7 {[%clk 0:02:40.5]} 9. b3 {[%clk 0:02:55.2]} 9... Nf5 {[%clk 0:02:35.6]} 10.
Bg5 {[%clk 0:02:52]} 10... Nd7 {[%clk 0:02:30]} 11. c4 {[%clk 0:02:51.3]} 11...
Be7 {[%clk 0:02:28.8]} 12. Bxe7 {[%clk 0:02:46.8]} 12... Nxe7 {[%clk 0:02:28.1]}
13. Nc3 {[%clk 0:02:45.9]} 13... Nf5 {[%clk 0:02:24.8]} 14. cxd5 {[%clk
0:02:45.6]} 14... cxd5 {[%clk 0:02:18.5]} 15. Nxd5 {[%clk 0:02:46.1]} 15... Qd8
{[%clk 0:02:05]} 16. Ne3 {[%clk 0:02:37.6]} 16... Nxh4 {[%clk 0:02:01.9]} 17.
Nc4 {[%clk 0:02:29.5]} 17... O-O {[%clk 0:01:50.5]} 18. Rfe1 {[%clk 0:02:09.6]}
18... Nf5 {[%clk 0:01:45.9]} 19. Rad1 {[%clk 0:02:04.2]} 19... Nb6 {[%clk
0:01:42.1]} 20. Nxb6 {[%clk 0:01:56.6]} 20... axb6 {[%clk 0:01:35.7]} 21. Rd2
{[%clk 0:01:34.1]} 21... Qd5 {[%clk 0:01:33.4]} 22. Red1 {[%clk 0:01:25.1]}
22... Rfd8 {[%clk 0:01:32.3]} 23. Ng5 {[%clk 0:01:19.4]} 23... Rd7 {[%clk
0:01:00.8]} 24. Qh3 {[%clk 0:01:19]} 24... h4 {[%clk 0:00:56.7]} 25. Nf3 {[%clk
0:01:10]} 25... Qe4 {[%clk 0:00:56.6]} 26. Re1 {[%clk 0:00:45.2]} 26... Qf4
{[%clk 0:00:56.7]} 27. Qh2 {[%clk 0:00:45.4]} 27... Qxh2+ {[%clk 0:00:55.2]} 28.
Kxh2 {[%clk 0:00:46.3]} 28... Rad8 {[%clk 0:00:51.1]} 29. Red1 {[%clk 0:00:46]}
29... b5 {[%clk 0:00:50]} 30. Kh3 {[%clk 0:00:45.3]} 30... Rd5 {[%clk
0:00:45.4]} 31. Nxh4 {[%clk 0:00:39.8]} 31... Nxd4 {[%clk 0:00:45.1]} 32. f4
{[%clk 0:00:35.3]} 32... b4 {[%clk 0:00:41.6]} 33. Kg4 {[%clk 0:00:30.5]} 33...
g6 {[%clk 0:00:38.1]} 34. g3 {[%clk 0:00:28]} 34... Kf8 {[%clk 0:00:35.1]} 35.
Nf3 {[%clk 0:00:28.2]} 35... Nxf3 {[%clk 0:00:32.3]} 36. Rxd5 {[%clk 0:00:27.5]}
36... Nxe5+ {[%clk 0:00:30.7]} 37. fxe5 {[%clk 0:00:25.2]} 37... Rxd5 {[%clk
0:00:30.7]} 38. Re1 {[%clk 0:00:20.6]} 38... Rd2 {[%clk 0:00:29.9]} 39. Re4
{[%clk 0:00:21]} 39... Rxa2 {[%clk 0:00:26.7]} 40. Rxb4 {[%clk 0:00:21.6]} 40...
Ra7 {[%clk 0:00:25.8]} 41. Rc4 {[%clk 0:00:20.1]} 41... b5 {[%clk 0:00:23.1]}
42. Rc5 {[%clk 0:00:19]} 42... Rb7 {[%clk 0:00:21.5]} 43. Kg5 {[%clk 0:00:19]}
43... Kg7 {[%clk 0:00:20.9]} 44. b4 {[%clk 0:00:18.1]} 44... Rb6 {[%clk
0:00:20.6]} 45. Rc7 {[%clk 0:00:17.8]} 45... Ra6 {[%clk 0:00:19.7]} 46. Rc5
{[%clk 0:00:18.2]} 46... Ra3 {[%clk 0:00:19.9]} 47. Rxb5 {[%clk 0:00:18.1]}
47... Rxg3+ {[%clk 0:00:19.8]} 48. Kf4 {[%clk 0:00:19]} 48... Rg1 {[%clk
0:00:19.8]} 49. Rb8 {[%clk 0:00:18.3]} 49... g5+ {[%clk 0:00:20]} 50. Kf3 {[%clk
0:00:18.4]} 50... Rf1+ {[%clk 0:00:19.4]} 51. Ke2 {[%clk 0:00:18.3]} 51... Rb1
{[%clk 0:00:18.8]} 52. b5 {[%clk 0:00:18.2]} 52... Kg6 {[%clk 0:00:19.2]} 53.
Ke3 {[%clk 0:00:17.3]} 53... Kf5 {[%clk 0:00:19.6]} 54. Kd4 {[%clk 0:00:17.7]}
54... Rb4+ {[%clk 0:00:19.4]} 55. Kc5 {[%clk 0:00:17.7]} 55... Rb1 {[%clk
0:00:19.8]} 56. Rb7 {[%clk 0:00:17]} 56... Kxe5 {[%clk 0:00:19.2]} 57. Rxf7
{[%clk 0:00:17]} 57... g4 {[%clk 0:00:19.8]} 58. Rg7 {[%clk 0:00:16.6]} 58...
Kf4 {[%clk 0:00:19.7]} 59. Kd6 {[%clk 0:00:16.6]} 59... e5 {[%clk 0:00:18.8]}
60. Rf7+ {[%clk 0:00:16.2]} 60... Ke4 {[%clk 0:00:19.2]} 61. Rg7 {[%clk
0:00:16.8]} 61... Rxb5 {[%clk 0:00:17.9]} 62. Rxg4+ {[%clk 0:00:16.4]} 62... Kf5
{[%clk 0:00:18.8]} 63. Rg7 {[%clk 0:00:16.5]} 63... e4 {[%clk 0:00:18.2]} 64.
Rf7+ {[%clk 0:00:16]} 64... Kg4 {[%clk 0:00:18.6]} 65. Kc6 {[%clk 0:00:15.3]}
65... Rh5 {[%clk 0:00:18.1]} 66. Kd6 {[%clk 0:00:15.2]} 66... e3 {[%clk
0:00:18.3]} 67. Re7 {[%clk 0:00:13]} 67... Kf3 {[%clk 0:00:18.2]} 68. Rf7+
{[%clk 0:00:13.5]} 68... Ke2 {[%clk 0:00:18.5]} 69. Kc6 {[%clk 0:00:11.1]} 69...
Kd2 {[%clk 0:00:18.5]} 70. Rd7+ {[%clk 0:00:11.1]} 70... Ke1 {[%clk 0:00:18.7]}
71. Re7 {[%clk 0:00:10]} 71... e2 {[%clk 0:00:19]} 72. Kd6 {[%clk 0:00:09.9]}
72... Rh3 {[%clk 0:00:19]} 73. Rf7 {[%clk 0:00:08.8]} 73... Kd2 {[%clk
0:00:18.6]} 74. Kc5 {[%clk 0:00:09.1]} 74... e1=Q {[%clk 0:00:17.7]} 0-1